lending/lending_fUSD_20240723
["ID","MTS","AMOUNT","RATE_DAILY","PERIOD"]
[333019620,1721752234392,-500.0,0.00010999,2]
[333019621,1721752234401,-500.0,0.00010999,2]
[333019622,1721752234411,-500.0,0.00010999,2]
[333019623,1721752234422,-500.0,0.00010999,2]
[333019624,1721752234432,-500.0,0.00010999,2]
[333019625,1721752234441,-500.0,0.00010999,2]
[333019626,1721752234451,-500.0,0.00010999,2]
[333019627,1721752234462,-500.0,0.00010999,2]
[333019628,1721752234472,-500.0,0.00010999,2]
[333019629,1721752234483,-159.08,0.00010999,2]
[333019630,1721752234492,-500.0,0.00010999,2]
[333019631,1721752234502,-180.07,0.00010999,2]
[333019632,1721752234511,-500.0,0.00010999,2]
[333019633,1721752234521,-527.0,0.00011,2]
[333019634,1721752234531,-500.0,0.00011,2]
[333019635,1721752234541,-500.0,0.00011,2]
[333019636,1721752234551,-500.0,0.00011,2]
[333019637,1721752234560,-500.0,0.00011,2]
[333019638,1721752234569,-238794.32984411,0.00011,2]
[333019639,1721752234827,-82982.30087,0.00011,2]
[333019640,1721752234840,-27344.70657209,0.00011,2]
[333019641,1721752234851,-11868.66662814,0.00011,2]
[333019642,1721752234863,-415.22091175,0.00011,2]
[333019643,1721752234897,155.44720467,8.859e-05,2]
[333019644,1721752234915,-776.61022031,0.00011,2]
[333019646,1721752237777,-478.331445,9.32e-05,2]
[333019647,1721752237787,-165.33577852,0.0001079,2]
[333019648,1721752237798,-997.6907,0.0001079,2]
[333019649,1721752237949,-1336.97352148,0.0001079,2]
[333019650,1721752237958,-168.12424796,0.00010899,2]
[333019651,1721752237968,-31213.89625503,0.00011,2]
[333019652,1721752237979,-1976.01842031,0.00011,2]
[333019675,1721752239688,-352.89106032,0.00011,2]
[333019678,1721752239700,-228.10893968,0.00011,2]
[333019681,1721752239709,-232.46079905,0.00011,2]
[333019695,1721752239803,-49871.13696804,0.00011,2]
[333019697,1721752239814,-845.5475816,0.00011,2]
[333019699,1721752239826,-349.17812941,0.00011,2]
[333019704,1721752239874,-636.42,0.00011,2]
[333019705,1721752239939,-12317.93100775,0.00011,2]
[333019706,1721752239951,-496.786,0.00011,2]
[333019707,1721752239962,-492.55741441,0.00011,2]
[333019708,1721752239979,-5782.29098957,0.00011,2]
[333019709,1721752240011,-557.83209693,0.00011,2]
[333019710,1721752240026,-1032.75,0.00011,2]
[333019711,1721752240079,-745.83403878,0.00011,2]
[333019742,1721752242754,-685.21555,0.00011,2]
[333019743,1721752242870,-443.2567971,0.00011,2]
[333019744,1721752242927,-3265.01060924,0.00011,2]
[333019745,1721752242942,-305.67881732,0.00011,2]
[333019755,1721752245836,155.0,8.859e-05,2]
[333019756,1721752245909,-1358.30506084,0.000109,2]
[333019757,1721752245924,-255.69426588,0.00010958,2]
[333019758,1721752245934,-834.99097398,0.00011,2]
[333019759,1721752245946,-3694.55916163,0.00011,2]
[333019760,1721752245957,-3857.94194239,0.00011,2]
[333019761,1721752246006,-657358.77271909,0.00011,2]
[333019762,1721752246018,-856.20926424,0.00011,2]
[333019763,1721752246039,-1638.75847345,0.00011,2]
[333019764,1721752246050,-873.02264543,0.00011,2]
[333019765,1721752246062,-747.40697802,0.00011,2]
[333019766,1721752246077,-505.14,0.00011,2]
[333019767,1721752246089,-292.064,0.00011,2]
[333019768,1721752246116,-3370.9785,0.00011,2]
[333019769,1721752246143,-912.34615092,0.00011,2]
[333019770,1721752246822,170.54,8.219e-05,2]
[333019771,1721752247508,797.30336427,8.859e-05,2]
[333019772,1721752247910,155.0,8.859e-05,2]
[333019775,1721752255622,4901.15971676,8.859e-05,2]
[333019776,1721752268814,155.0,8.859e-05,2]
[333019777,1721752290797,150.0,0.00013298,120]
[333019778,1721752294491,191.59,8.045e-05,2]
[333019780,1721752345809,155.0,8.859e-05,2]
[333019783,1721752410732,150.0,0.00014753,120]
[333019784,1721752413754,155.0,8.045e-05,2]
[333019785,1721752420874,155.0,8.045e-05,2]
[333019786,1721752421758,158.83612492,8.859e-05,2]
[333019787,1721752432075,204.35569083,8.859e-05,2]
[333019788,1721752433488,155.0,8.859e-05,2]
[333019789,1721752434020,797.30336427,8.859e-05,2]
[333019790,1721752471823,224.47982687,8.859e-05,2]
[333019793,1721752503525,268.18,9.041e-05,2]
[333019794,1721752508756,411.34916256,8.859e-05,2]
[333019795,1721752510263,155.0,8.859e-05,2]
[333019796,1721752511419,300.23984846,8.859e-05,2]
[333019797,1721752513287,363.49694699,8.859e-05,2]
[333019798,1721752521753,158.83612492,8.859e-05,2]
[333019799,1721752525057,291.18643211,8.859e-05,2]
[333019800,1721752525268,155.0,8.859e-05,2]
[333019801,1721752526029,797.30336427,8.859e-05,2]
[333019803,1721752543997,871.0274112,8.859e-05,2]
[333019804,1721752556236,155.0,8.859e-05,2]
[333019805,1721752583292,363.49694699,8.859e-05,2]
[333019807,1721752594774,411.34916256,8.859e-05,2]
[333019808,1721752611027,797.30336427,8.859e-05,2]
[333019809,1721752615760,158.83612492,8.859e-05,2]
[333019810,1721752624770,411.34916256,8.859e-05,2]
[333019811,1721752627579,291.18643211,8.859e-05,2]
[333019812,1721752635267,206.57036734,8.859e-05,2]
[333019813,1721752643233,155.0,8.859e-05,2]
[333019814,1721752657515,750.0,8.859e-05,2]
[333019815,1721752678324,363.49694699,8.859e-05,2]
[333019818,1721752704589,291.18643211,8.859e-05,2]
[333019819,1721752711782,158.83612492,8.859e-05,2]
[333019820,1721752713935,797.30336427,8.859e-05,2]
[333019821,1721752734782,378.18857748,8.859e-05,2]
[333019822,1721752741249,242.51272939,8.859e-05,2]
[333019823,1721752760397,363.49694699,8.859e-05,2]
[333019824,1721752791120,170.54,8.219e-05,2]
[333019825,1721752802776,304.86780214,8.859e-05,2]
[333019829,1721752815131,291.18643211,8.859e-05,2]
[333019830,1721752821041,797.30336427,8.859e-05,2]
[333019832,1721752834294,175.18045052,8.815e-05,2]
[333019834,1721752857318,444.42908875,8.859e-05,2]
[333019835,1721752858515,1263.58,8.219e-05,2]
[333019838,1721752884019,191.59,7.496e-05,2]
[333019839,1721752915090,291.18643211,7.496e-05,2]
[333019845,1721752941047,797.30336427,7.496e-05,2]
[333019846,1721752956074,797.30336427,7.496e-05,2]
[333019847,1721753000089,244.18404705,7.496e-05,2]
[333019849,1721753027826,20000.0,0.00015,30]
[333019855,1721753282497,-200.0,9.286e-05,2]
[333019856,1721753282520,-818.18,9.324e-05,2]
[333019857,1721753282543,-150.98429648,9.327e-05,2]
[333019858,1721753282565,-150.0,9.332e-05,2]
[333019859,1721753282590,-4490.3357122,9.332e-05,2]
[333019860,1721753282612,-150.2406707,9.341e-05,2]
[333019861,1721753282639,-282.64,9.344e-05,2]
[333019862,1721753282661,-150.77350798,9.351e-05,2]
[333019863,1721753282682,-166.66666666,9.351e-05,2]
[333019864,1721753282705,-304.59,9.351e-05,2]
[333019865,1721753282727,-250.0,9.383e-05,2]
[333019866,1721753282749,-952.2,9.384e-05,2]
[333019867,1721753282772,-300.0,9.393e-05,2]
[333019868,1721753282794,-287.43,9.394e-05,2]
[333019869,1721753282816,-1345.95914598,9.394e-05,2]
[333019870,1721753283587,-10000.0,9.394e-05,2]
[333019871,1721753283983,-10000.0,9.394e-05,2]
[333019872,1721753284369,-2554.04085402,9.394e-05,2]
[333019873,1721753284392,-150.77350798,9.406e-05,2]
[333019874,1721753284414,-6323.72,9.462e-05,2]
[333019875,1721753284437,-153.8527844,9.473e-05,2]
[333019876,1721753284459,-155.39218712,9.559e-05,2]
[333019877,1721753284482,-662.22066648,9.577e-05,2]
[333019878,1721753284857,-337.77933352,9.577e-05,2]
[333019879,1721753284880,-208.58276672,9.641e-05,2]
[333019880,1721753284903,-150.0,9.669e-05,2]
[333019881,1721753284925,-9303.63789976,9.67e-05,2]
[333019882,1721753285257,-696.35210024,9.67e-05,2]
[333019883,1721753285281,-150.99,9.67e-05,2]
[333019884,1721753285304,-9152.65789976,9.67e-05,2]
[333019885,1721753285621,-6595.89210024,9.67e-05,2]
[333019886,1721753285646,-3404.10789976,9.67e-05,2]
[333019887,1721753285954,-10000.0,9.67e-05,2]
[333019888,1721753286673,-5537.28210024,9.67e-05,2]
[333019889,1721753286696,-4462.71789976,9.67e-05,2]
[333019890,1721753287248,-6459.08210024,9.67e-05,2]
[333019891,1721753287274,-2449.25,9.67e-05,2]
[333019892,1721753287296,-213.6448912,9.697e-05,2]
[333019893,1721753287319,-151.45631594,9.727e-05,2]
[333019898,1721753359076,726.56669262,9.727e-05,2]
[333019899,1721753359099,70.73667165,9.727e-05,2]
[333019900,1721753362600,10000.0,0.000165,120]
[333019901,1721753406641,1375.44,8.219e-05,2]
[333019902,1721753416775,170.54,8.219e-05,2]
[333019914,1721753431864,-259.4013,9.883e-05,2]
[333019915,1721753431873,-153.8527844,9.944e-05,2]
[333019916,1721753431882,-300.0,9.955e-05,2]
[333019917,1721753431891,-12490.2927,9.956e-05,2]
[333019918,1721753431900,-155.20036726,0.00010016,2]
[333019919,1721753431909,-154.92209385,0.00010019,2]
[333019920,1721753431919,-152.53046896,0.00010068,2]
[333019921,1721753431929,-208.58276672,0.00010147,2]
[333019922,1721753431938,-300.94,0.00010247,2]
[333019923,1721753431947,-1058.72,0.00010247,2]
[333019924,1721753431957,-709.7,0.00010247,2]
[333019925,1721753431967,-152.02,0.00010247,2]
[333019926,1721753431975,-425.5,0.00010247,2]
[333019927,1721753431984,-425.5,0.00010247,2]
[333019928,1721753431994,-425.5,0.00010247,2]
[333019929,1721753432003,-154.72,0.00010247,2]
[333019930,1721753432013,-166.66666666,0.00010248,2]
[333019931,1721753432022,-150.99,0.00010248,2]
[333019932,1721753432031,-150.77350798,0.00010454,2]
[333019933,1721753432040,-1375.44,0.00010465,2]
[333019934,1721753432049,-1231.37885719,0.000105,2]
[333019957,1721753432391,-1842.03866419,0.000105,2]
[333019959,1721753432401,-150.77350798,0.00010594,2]
[333019961,1721753432410,-213.6448912,0.0001061,2]
[333019963,1721753432419,-153.8527844,0.00010617,2]
[333019964,1721753432429,-156.74383414,0.00010632,2]
[333019965,1721753432438,-255.0,0.00010635,2]
[333019966,1721753432448,-151.46993681,0.00010682,2]
[333019967,1721753432458,-153.8527844,0.00010735,2]
[333019968,1721753432468,-155.23875206,0.00010738,2]
[333019969,1721753432477,-78.88484482,0.00010738,2]
[333019970,1721753432489,-96.78216605,0.00010738,2]
[333019971,1721753432499,-268.52906281,0.00010738,2]
[333019972,1721753432508,-156.77059006,0.00010738,2]
[333019973,1721753432518,-156.09915121,0.00010738,2]
[333019974,1721753432527,-155.13031876,0.00010738,2]
[333019975,1721753432536,-166.52449921,0.00010738,2]
[333019976,1721753432545,-1000.0,0.00010774,2]
[333019977,1721753432555,-166.66666668,0.00010828,2]
[333019978,1721753432564,-2947.3771,0.000109,2]
[333019979,1721753432573,-160.32482544,0.000109,2]
[333019980,1721753432586,-174.46635943,0.000109,2]
[333019981,1721753432595,-265.4405166,0.000109,2]
[333019982,1721753432604,-4861.87269321,0.000109,2]
[333019983,1721753432613,-1100.0,0.00010958,2]
[333019984,1721753432623,-305.11673738,0.00010958,2]
[333019985,1721753432632,-500.0,0.00010959,2]
[333019986,1721753432641,-175.95,0.00010959,2]
[333019987,1721753432651,-250.0,0.00010959,2]
[333019988,1721753432661,-250.0,0.00010959,2]
[333019989,1721753432670,-799.04,0.00010959,2]
[333019990,1721753432679,-7379.23529048,0.00010972,2]
[333019991,1721753432712,-330.05428612,0.00010972,2]
[333019992,1721753432723,-2188.8407,0.00010972,2]
[333020013,1721753437931,-521.13,0.00010959,2]
[333020014,1721753437941,-48.65816292,0.00010972,2]
[333020015,1721753437954,-632.61806622,0.00010972,2]
[333020016,1721753437964,-213.6448912,0.00010982,2]
[333020017,1721753437973,-1693.7417891,0.00010995,2]
[333020018,1721753437983,-8771.63457378,0.00010995,2]
[333020019,1721753437995,-653.67901261,0.00010995,2]
[333020020,1721753438022,-886.99125301,0.00010995,2]
[333020021,1721753438047,-4052.72401042,0.00010995,2]
[333020022,1721753438058,-2735.53908701,0.00010995,2]
[333020023,1721753438093,-464.69727716,0.00010995,2]
[333020024,1721753438106,-406.46916604,0.00010995,2]
[333020025,1721753438148,-1938.81596643,0.00010995,2]
[333020026,1721753438160,-816.07128584,0.00010995,2]
[333020027,1721753438213,-1215.2418198,0.00010995,2]
[333020028,1721753438223,-1242.42680323,0.00010997,5]
[333020029,1721753438235,-1458.46802249,0.00010997,5]
[333020030,1721753438244,-500.0,0.00010999,2]
[333020031,1721753438254,-500.0,0.00010999,2]
[333020032,1721753438263,-500.0,0.00010999,2]
[333020033,1721753438273,-434.38809192,0.00010999,2]
[333020034,1721753438282,-1446.51710855,0.00010999,2]
[333020035,1721753438292,-500.0,0.00010999,2]
[333020036,1721753438303,-335.97661551,0.00010999,2]
[333020037,1721753438313,-4.70977,0.00010999,2]
[333020039,1721753438325,-495.29023,0.00010999,2]
[333020041,1721753438336,-500.0,0.00010999,2]
[333020043,1721753438346,-251.7961644,0.00010999,2]
[333020045,1721753438355,-322.26445096,0.00010999,2]
[333020047,1721753438367,-91.75446421,0.00010999,2]
[333020048,1721753438377,-570.0,0.00011,2]
[333020050,1721753438388,-404.56178475,0.00011,2]
[333020053,1721753438401,-2472.92464761,0.00011,2]
[333020054,1721753438413,-31562.41963906,0.00011,2]
[333020055,1721753438424,-613.21,0.00011,2]
[333020056,1721753438444,-258.93585025,0.00011,2]
[333020057,1721753438458,-8500.0,0.00011,2]
[333020075,1721753439910,-317.49627518,0.00011,2]
[333020076,1721753439967,-12921.63839813,0.00011,2]
[333020077,1721753440025,-708.33524186,0.00011,2]
[333020078,1721753440037,-760.32601188,0.00011,2]
[333020081,1721753442911,-169.24,0.000101,2]
[333020082,1721753442921,-6475.93838912,0.00011,2]
[333020083,1721753443021,-305.3305634,0.00011,2]
[333020084,1721753443078,-8740.5498794,0.00011,2]
[333020085,1721753443240,-2096.81585907,0.00011,2]
[333020162,1721753447202,-1043.4000003,0.00011,2]
[333020163,1721753447261,-307.89258711,0.00011,2]
[333020164,1721753447272,-1214.69466643,0.00011,2]
[333020165,1721753447322,-2374.40409786,0.00011,2]
[333020166,1721753447436,-1754.02771519,0.00011,2]
[333020167,1721753447448,-1716.45,0.00011,2]
[333020168,1721753447459,-265.635711,0.00011,2]
[333020169,1721753447548,-10321.65021737,0.00011,2]
[333020173,1721753458626,191.59,8.095e-05,2]
[333020174,1721753520755,8191.69332835,8.095e-05,2]
[333020175,1721753520779,3055.10084253,8.095e-05,2]
[333020179,1721753536051,194.67724894,9.388e-05,2]
[333020180,1721753537074,168.018975,9.593e-05,2]
[333020181,1721753537399,153.78556042,9.655e-05,2]
[333020182,1721753542087,295.48280312,8.095e-05,2]
[333020183,1721753547915,154.92209385,9.727e-05,2]
[333020184,1721753547961,166.55161563,9.499e-05,2]
[333020185,1721753550709,150.0,0.00015823,120]
[333020189,1721753617541,2324.34,9.72e-05,2]
[333020190,1721753623226,500.0,9.72e-05,2]
[333020191,1721753626704,-1000.0,9.731e-05,2]
[333020192,1721753626731,-1573.16,9.732e-05,2]
[333020193,1721753626753,-797.34,9.751e-05,2]
[333020194,1721753626775,-194.67724894,9.771e-05,2]
[333020195,1721753626796,-192.28040208,9.791e-05,2]
[333020196,1721753626817,-151.45631594,9.818e-05,2]
[333020197,1721753626839,-192.28040208,9.977e-05,2]
[333020198,1721753626859,-152.06587108,9.982e-05,2]
[333020201,1721753752718,250.0,9.852e-05,2]
[333020202,1721753836313,181.69876567,9.541e-05,2]
[333020203,1721753836941,181.69876567,9.639e-05,2]
[333020204,1721753837279,181.69876567,9.946e-05,2]
[333020205,1721753840065,166.66666667,9.447e-05,2]
[333020206,1721753844674,154.92209385,9.527e-05,2]
[333020207,1721753847595,156.74383414,9.694e-05,2]
[333020208,1721753867280,701.34856872,9.973e-05,2]
[333020209,1721753874108,3771.96229949,9.805e-05,2]
[333020210,1721753874132,10000.0,9.805e-05,2]
[333020211,1721753874156,9798.26770051,9.805e-05,2]
[333020212,1721753950322,201.73229949,9.809e-05,2]
[333020213,1721753950345,48.26770051,9.809e-05,2]
[333020214,1721753987619,1402.69713744,9.973e-05,2]
[333020215,1721754014657,1273.94,8.219e-05,2]
[333020225,1721754136030,163.52888911,9.878e-05,2]
[333020226,1721754136546,163.52888911,9.88e-05,2]
[333020227,1721754140466,166.66666667,9.928e-05,2]
[333020228,1721754142556,155.50611092,9.441e-05,2]
[333020229,1721754144793,150.2406707,9.791e-05,2]
[333020230,1721754144862,169.67953006,9.547e-05,2]
[333020231,1721754146260,154.92209385,9.71e-05,2]
[333020232,1721754146540,153.8527844,9.369e-05,2]
[333020233,1721754148191,179.46170861,9.651e-05,2]
[333020234,1721754148452,947.25112385,9.962e-05,2]
[333020235,1721754162417,200.0,9.865e-05,2]
[333020236,1721754175575,500.0,9.865e-05,2]
[333020237,1721754232900,159.62268065,9.908e-05,2]
[333020238,1721754253673,1239.09,9.924e-05,2]
[333020239,1721754313187,150.0,9.888e-05,2]
[333020242,1721754347287,250.0,9.866e-05,2]
[333020243,1721754436733,150.0,9.444e-05,2]
[333020244,1721754436754,2.62696317,9.444e-05,2]
[333020245,1721754436791,147.37303683,9.928e-05,2]
[333020246,1721754436813,3.40047115,9.928e-05,2]
[333020247,1721754437150,146.59952885,9.589e-05,2]
[333020248,1721754437171,6.02743432,9.589e-05,2]
[333020249,1721754437616,143.97256568,9.9e-05,2]
[333020250,1721754437643,8.65439749,9.9e-05,2]
[333020251,1721754447548,173.47965165,9.697e-05,2]
[333020252,1721754448037,88.72363502,9.706e-05,2]
[333020253,1721754448061,84.75601663,9.706e-05,2]
[333020254,1721754448201,150.2406707,9.846e-05,2]
[333020255,1721754448530,173.47965165,9.73e-05,2]
[333020256,1721754448830,177.39425798,9.454e-05,2]
[333020257,1721754449062,168.86917523,9.713e-05,2]
[333020258,1721754449572,151.45631594,9.662e-05,2]
[333020259,1721754450260,153.8527844,9.613e-05,2]
[333020260,1721754450461,166.66666668,9.756e-05,2]
[333020263,1721754478129,870.85768416,9.866e-05,2]
[333020264,1721754502967,250.0,9.848e-05,2]
[333020265,1721754523489,24.17079075,8.219e-05,2]
[333020266,1721754523512,1186.06920925,8.219e-05,2]
[333020274,1721754550450,150.0,9.85e-05,2]
[333020275,1721754550473,50.0,9.85e-05,2]
[333020278,1721754577639,186.79848972,9.962e-05,2]
[333020279,1721754577663,200.0,9.962e-05,2]
[333020280,1721754604265,206.34567107,9.962e-05,2]
[333020281,1721754605023,194.65638623,9.962e-05,2]
[333020290,1721754632209,-159.62268059,0.00010073,2]
[333020291,1721754632219,-151.45631594,0.00010137,2]
[333020292,1721754632228,-150.77350798,0.00010198,2]
[333020293,1721754632237,-2835.84189549,0.000102,2]
[333020294,1721754632248,-3312.59796,0.000102,2]
[333020295,1721754632267,-583.99999999,0.000102,2]
[333020296,1721754632278,-584.57187007,0.000102,2]
[333020297,1721754632380,-1235.21067445,0.000102,2]
[333020298,1721754632389,-159.62268059,0.00010238,2]
[333020299,1721754632399,-155.27597338,0.00010298,2]
[333020300,1721754632408,-5892.0,0.000103,3]
[333020301,1721754632421,-150.77350798,0.00010313,2]
[333020302,1721754632430,-200.0,0.000104,3]
[333020303,1721754632440,-159.62268059,0.00010404,2]
[333020304,1721754632450,-499.99,0.00010404,2]
[333020305,1721754632459,-320.54328777,0.00010468,2]
[333020306,1721754632500,-662.21155,0.00010468,2]
[333020307,1721754632872,-227.48516223,0.00010468,2]
[333020308,1721754632881,-500.0,0.000105,3]
[333020309,1721754632890,-861.70243777,0.000105,5]
[333020444,1721754638032,-3657.5,0.000105,5]
[333020445,1721754638047,-1640.61318242,0.000105,5]
[333020446,1721754638059,-1846.64551871,0.000105,5]
[333020447,1721754638071,-3488.5388611,0.000105,5]
[333020448,1721754638080,-151.45631594,0.00010562,2]
[333020449,1721754638090,-159.62268059,0.00010569,2]
[333020450,1721754638099,-150.2406707,0.00010575,2]
[333020451,1721754638108,-800.0,0.000106,3]
[333020452,1721754638117,-1100.0,0.000107,3]
[333020453,1721754638127,-550.0,0.00010722,2]
[333020454,1721754638136,-150.0,0.00010722,2]
[333020455,1721754638147,-159.62268059,0.00010734,2]
[333020456,1721754638157,-1400.0,0.000108,3]
[333020457,1721754638166,-400.46236331,0.00010842,2]
[333020458,1721754638192,-99.53763669,0.00010842,2]
[333020459,1721754638202,-500.0,0.0001085,2]
[333020460,1721754638212,-6.07314923,0.00010859,2]
[333020461,1721754638224,-493.92685077,0.00010859,2]
[333020462,1721754638234,-500.0,0.00010868,2]
[333020463,1721754638243,-500.0,0.00010877,2]
[333020464,1721754638253,-500.0,0.00010886,2]
[333020465,1721754638263,-452.40628403,0.0001089,2]
[333020466,1721754638273,-5.85450499,0.0001089,2]
[333020467,1721754638296,-1314.95899501,0.0001089,2]
[333020468,1721754638305,-500.0,0.00010894,2]
[333020469,1721754638315,-1795.352,0.00010896,2]
[333020470,1721754638324,-1018.688,0.00010896,2]
[333020471,1721754638379,-159.62268059,0.00010899,2]
[333020472,1721754638390,-4313.2375,0.000109,2]
[333020473,1721754638399,-1060.003,0.000109,2]
[333020474,1721754638408,-976.0324,0.000109,2]
[333020475,1721754638418,-182.42849114,0.000109,2]
[333020476,1721754638429,-490.9518,0.000109,2]
[333020477,1721754638439,-160.44485388,0.000109,2]
[333020478,1721754638448,-174.46635943,0.000109,2]
[333020479,1721754638457,-860.0,0.000109,2]
[333020480,1721754638467,-1002.0,0.000109,2]
[333020481,1721754638476,-200.0,0.000109,3]
[333020482,1721754638486,-1000.0,0.000109,2]
[333020483,1721754638495,-176.9603444,0.000109,2]
[333020484,1721754638505,-500.0,0.00010903,2]
[333020485,1721754638514,-220.84,0.00010904,3]
[333020486,1721754638524,-500.0,0.00010912,2]
[333020487,1721754638533,-500.0,0.00010921,2]
[333020488,1721754638543,-500.0,0.0001093,2]
[333020489,1721754638552,-420.03,0.00010932,2]
[333020490,1721754638561,-570.18,0.00010932,2]
[333020491,1721754638570,-500.0,0.00010938,2]
[333020492,1721754638579,-500.0,0.00010947,2]
[333020493,1721754638589,-1000.0,0.00010948,2]
[333020494,1721754638599,-500.0,0.00010956,2]
[333020495,1721754638608,-500.0,0.00010959,2]
[333020496,1721754638617,-250.0,0.00010959,2]
[333020497,1721754638627,-501.31,0.00010959,2]
[333020498,1721754638636,-150.0,0.00010959,2]
[333020499,1721754638646,-500.0,0.00010959,2]
[333020500,1721754638655,-500.0,0.00010965,2]
[333020501,1721754638665,-5000.0,0.00010972,2]
[333020502,1721754638676,-500.0,0.00010974,2]
[333020503,1721754638686,-500.0,0.00010982,2]
[333020504,1721754638699,-1616.09634779,0.00010985,2]
[333020505,1721754638709,-173.47965165,0.00010988,2]
[333020506,1721754638718,-500.0,0.00010991,2]
[333020507,1721754638727,-1252.4175761,0.00010995,2]
[333020515,1721754638850,-835.77,0.00010995,2]
[333020518,1721754638871,-9638.2626874,0.00010995,2]
[333020520,1721754638880,-1415.4062152,0.00010995,2]
[333020522,1721754638889,-2153.3103945,0.00010995,2]
[333020524,1721754638898,-585.60823088,0.00010999,2]
[333020526,1721754638908,-499.14525089,0.00010999,2]
[333020528,1721754638918,-392.19426503,0.00010999,2]
[333020529,1721754638928,-317.56762843,0.00010999,2]
[333020531,1721754638937,-196.75467282,0.00010999,2]
[333020533,1721754638946,-390.74057297,0.00010999,2]
[333020535,1721754638955,-282.72148618,0.00010999,2]
[333020537,1721754638965,-525.50798852,0.00010999,2]
[333020539,1721754638974,-500.0,0.00010999,2]
[333020541,1721754638987,-500.0,0.00010999,2]
[333020543,1721754638996,-500.0,0.00010999,2]
[333020545,1721754639006,-500.0,0.00010999,2]
[333020547,1721754639015,-500.0,0.00010999,2]
[333020549,1721754639025,-500.0,0.00010999,2]
[333020550,1721754639035,-349.78590833,0.00010999,2]
[333020552,1721754639045,-1433.6,0.00010999,2]
[333020554,1721754639055,-500.0,0.00010999,2]
[333020556,1721754639064,-500.0,0.00010999,2]
[333020558,1721754639073,-500.0,0.00010999,2]
[333020560,1721754639082,-381.181056,0.00010999,2]
[333020562,1721754639092,-658.0,0.00011,2]
[333020563,1721754639102,-10370.21364285,0.00011,2]
[333020565,1721754639113,-255.3477856,0.00011,2]
[333020568,1721754639128,-330.200041,0.00011,2]
[333020570,1721754639143,-2309.545,0.00011,2]
[333020573,1721754639154,-2930.71003455,0.00011,2]
[333020575,1721754639164,-1715.38863992,0.00011,2]
[333020577,1721754639180,-329.49693694,0.00011,2]
[333020579,1721754639191,-1920.47067326,0.00011,2]
[333020595,1721754640016,-13200.0,0.00011,2]
[333020597,1721754640238,-330.58025,0.00011,2]
[333020598,1721754640342,-660.75,0.00011,2]
[333020599,1721754640353,-330.01078087,0.00011,2]
[333020600,1721754640364,-265.84899545,0.00011,2]
[333020601,1721754640375,-277.656,0.00011,2]
[333020602,1721754640388,-2382.0,0.00011,2]
[333020603,1721754640407,-1818.92599112,0.00011,2]
[333020604,1721754640430,-2640.0,0.00011,2]
[333020792,1721754643162,-319.30288116,0.00011,2]
[333020793,1721754643221,-12887.5,0.00011,2]
[333020794,1721754643234,-1704.0513,0.00011,2]
[333020795,1721754643281,-3299.9625,0.00011,2]
[333020796,1721754643293,-1701.49999998,0.00011,2]
[333020797,1721754643304,-298.052475,0.00011,2]
[333020798,1721754643316,-340.33999999,0.00011,2]
[333020799,1721754643327,-1321.32,0.00011,2]
[333020800,1721754643339,-5530.627398,0.00011,2]
[333020802,1721754643795,-699.08673824,0.00011,2]
[333020803,1721754643807,-6184.000072,0.00011,2]
[333020804,1721754643819,-12909.18112,0.00011,2]
[333020837,1721754646107,-255.0,0.000105,5]
[333020839,1721754646116,-601.0,0.00011,2]
[333020840,1721754646126,-1790.9300712,0.00011,2]
[333020841,1721754646163,-291.05885609,0.00011,2]
[333020842,1721754646178,-1000.0,0.00011,2]
[333020843,1721754646224,-8329.40143143,0.00011,2]
[333020847,1721754646656,-823.01959517,0.00011,2]
[333020849,1721754646668,-985.97364887,0.00011,2]
[333020851,1721754646685,-2932.81723728,0.00011,2]
[333020853,1721754646698,-8605.0,0.00011,2]